bitfinex-derivatives/quotes_SOLF0:USTF0_20250522
["timestamp","ask_amount","ask_price","bid_price","bid_amount"]
[1747916159661,0.03870063,177.67,177.65,5.6283]
[1747916160261,5.66660063,177.67,177.65,5.6283]
[1747916160469,5.66660063,177.67,177.64,5.6287]
[1747916161267,5.6282,177.66,177.63,5.66859029]
[1747916161470,0.03870063,177.67,177.63,0.03959029]
[1747916161968,5.66670063,177.67,177.64,5.6286]
[1747916164566,0.03870063,177.67,177.63,0.03959029]
[1747916167770,0.03870063,177.67,177.66,5.6282]
[1747916169773,0.03870063,177.67,177.65,5.6284]
[1747916170675,0.03870063,177.67,177.66,5.6282]
[1747916175082,0.03870063,177.67,177.63,120.71959029]
[1747916175469,0.03870063,177.67,177.63,125.44016711]
[1747916175670,5.6282,177.66,177.63,131.06906711]
[1747916175970,0.03870063,177.67,177.63,125.44016711]
[1747916176180,5.66680063,177.67,177.64,5.6286]
[1747916177179,5.6284,177.66,177.63,131.06926711]
[1747916177383,0.03870063,177.67,177.63,125.44016711]
[1747916178282,5.6288,177.65,177.63,120.71959029]
[1747916178483,5.6288,177.65,177.63,0.03959029]
[1747916179585,5.6288,177.64,177.63,0.03959029]
[1747916181884,5.6288,177.64,177.63,0.00713746]
[1747916184381,15.46780225,177.65,177.63,0.00713746]
[1747916184787,9.83920225,177.65,177.63,0.00713746]
[1747916185593,5.6288,177.64,177.63,0.00713746]
[1747916188594,120.56,177.64,177.53,4.72057682]
[1747916188992,5.6296,177.62,177.58,5.6306]
[1747916189196,5.23502127,177.65,177.56,120.56]
[1747916189498,0.03589926,177.62,177.6,5.63]
[1747916190197,0.03589926,177.62,177.59,0.04304047]
[1747916190198,0.03589926,177.62,177.61,5.6297]
[1747916191801,0.03589926,177.62,177.6,5.63]
[1747916193403,0.03589926,177.62,177.61,5.6297]
[1747916194605,0.03589926,177.62,177.61,126.1897]
[1747916207023,0.03589926,177.62,177.61,5.6297]
[1747916208018,0.03589926,177.62,177.6,126.0898]
[1747916208522,0.03589926,177.62,177.6,120.46]
[1747916208827,0.03589926,177.62,177.61,5.6297]
[1747916209023,5.23502127,177.69,177.6,125.06328489]
[1747916209223,5.23502127,177.69,177.62,4.60328489]
[1747916209526,5.23502127,177.69,177.6,120.46]
[1747916209527,9.83830616,177.69,177.61,4.60328489]
[1747916209720,5.628,177.67,177.61,4.60328489]
[1747916209918,0.03547534,177.66,177.64,5.6286]
[1747916210725,0.03547534,177.66,177.65,5.6285]
[1747916212427,0.03547534,177.66,177.64,5.6287]
[1747916212622,0.03547534,177.66,177.64,126.0687]
[1747916213226,0.03547534,177.66,177.65,5.6285]
[1747916216026,0.03547534,177.66,177.64,120.44]
[1747916216226,4.60328489,177.65,177.62,0.0387834]
[1747916216725,5.6291,177.63,177.62,0.0387834]
[1747916221032,5.6285,177.65,177.62,0.0387834]
[1747916221535,5.6289,177.64,177.62,0.0387834]
[1747916223536,5.6289,177.64,177.62,5.6681834]
[1747916223832,5.27049661,177.66,177.62,0.0387834]
[1747916224237,5.6287,177.65,177.62,0.0387834]
[1747916224440,5.27049661,177.66,177.62,0.0387834]
[1747916224737,5.6291,177.63,177.62,0.0387834]
[1747916233341,6.98002836,177.67,177.62,0.00766707]
[1747916233534,6.98002836,177.67,177.62,5.63696707]
[1747916233735,5.6291,177.63,177.62,0.00766707]
[1747916234438,126.12755229,177.64,177.62,0.00766707]
[1747916235042,120.49865229,177.64,177.62,0.00766707]
[1747916235743,5.6291,177.63,177.62,0.00766707]
[1747916240441,7.7036,177.63,177.62,0.00766707]
[1747916241336,13.3236,177.63,177.62,0.00766707]
[1747916241646,7.6945,177.63,177.52,5.6324]
[1747916241842,2.0745,177.63,177.52,5.6324]
[1747916242041,2.0745,177.63,177.5,4.72057682]
[1747916242244,5.6324,177.53,177.5,4.72057682]
[1747916242445,126.0324,177.53,177.5,4.72057682]
[1747916242749,126.07444413,177.53,177.5,4.760374]
[1747916243248,120.44204413,177.53,177.5,10.393474]
[1747916243450,120.44204413,177.53,177.5,4.760374]
[1747916243946,0.04204413,177.53,177.5,0.03979718]
[1747916244142,120.42,177.56,177.5,0.03979718]
[1747916244346,120.42,177.57,177.48,7.19363879]
[1747916244742,120.42,177.57,177.54,5.6319]
[1747916245140,5.6315,177.56,177.54,0.03959899]
[1747916246654,120.46178591,177.57,177.54,0.03959899]
[1747916247250,5.6314,177.56,177.54,0.03959899]
[1747916248250,5.6317,177.55,177.54,0.03959899]
[1747916248550,120.46178591,177.57,177.54,0.03959899]
[1747916248854,5.6315,177.56,177.54,0.03959899]
[1747916249349,120.46178591,177.57,177.54,0.03959899]
[1747916249953,5.6317,177.55,177.54,0.03959899]
[1747916250153,120.46178591,177.57,177.54,0.03959899]
[1747916253861,5.6317,177.55,177.54,0.03959899]
[1747916254457,120.46178591,177.57,177.54,0.03959899]
[1747916254854,0.04178591,177.57,177.54,0.03959899]
[1747916255055,5.67288591,177.57,177.54,0.03959899]
[1747916255248,0.04178591,177.57,177.54,0.03959899]
[1747916255454,5.67288591,177.57,177.54,5.67149899]
[1747916255659,0.04178591,177.57,177.54,5.67149899]
[1747916256355,0.04178591,177.57,177.55,5.6316]
[1747916256859,0.04178591,177.57,177.54,5.67149899]
[1747916257259,5.67298591,177.57,177.54,0.03959899]
[1747916257960,0.04178591,177.57,177.54,0.03959899]
[1747916258563,5.67298591,177.57,177.54,0.03959899]
[1747916258961,0.04178591,177.57,177.54,0.03959899]
[1747916259163,5.6316,177.55,177.54,0.03959899]
[1747916265163,5.6314,177.56,177.54,0.03959899]
[1747916265369,0.04178591,177.57,177.54,0.03959899]
[1747916265767,0.04178591,177.57,177.54,5.67139899]
[1747916265966,0.04178591,177.57,177.54,0.03959899]
[1747916266272,0.04178591,177.57,177.56,5.6313]
[1747916266969,120.58,177.6,177.58,5.6305]
[1747916267361,6.98002836,177.63,177.5,124.4042]
[1747916267362,6.98002836,177.63,177.53,7.19363879]
[1747916267564,6.98002836,177.63,177.61,5.6295]
[1747916267768,6.98002836,177.63,177.57,7.19363879]
[1747916267957,0.03563452,177.62,177.58,3.96137224]
[1747916268169,493.48002836,177.69,177.58,3.96137224]
[1747916268365,120.58,177.68,177.58,3.9218]
[1747916269164,0.03628606,177.65,177.61,5.6711992]
[1747916269364,5.66498606,177.65,177.61,5.6711992]
[1747916269876,5.6289,177.64,177.61,0.0414992]
[1747916270172,0.03628606,177.65,177.61,0.0414992]
[1747916270370,5.66488606,177.65,177.61,5.6709992]
[1747916271880,5.6289,177.64,177.61,5.6709992]
[1747916272174,0.03628606,177.65,177.61,5.6709992]
[1747916272875,5.66498606,177.65,177.61,5.6709992]
[1747916273177,0.03628606,177.65,177.61,5.6709992]
[1747916274077,5.66508606,177.65,177.61,5.6709992]
[1747916274477,0.03628606,177.65,177.62,5.6292]
[1747916274679,0.03628606,177.65,177.61,0.0414992]
[1747916275175,0.03628606,177.65,177.62,5.6292]
[1747916275478,0.03628606,177.65,177.61,0.0414992]
[1747916275783,0.03628606,177.65,177.62,5.6294]
[1747916275984,0.03628606,177.65,177.61,0.0414992]
[1747916276277,0.03628606,177.65,177.63,5.6291]
[1747916276781,0.03628606,177.65,177.61,0.0414992]
[1747916276967,0.03628606,177.65,177.62,5.6292]
[1747916277280,0.03628606,177.65,177.61,0.0414992]
[1747916277579,0.03628606,177.65,177.62,5.6292]
[1747916277983,0.03628606,177.65,177.61,0.0414992]
[1747916278279,5.66498606,177.65,177.61,5.6709992]
[1747916278468,0.03628606,177.65,177.61,0.0414992]
[1747916278777,5.66488606,177.65,177.61,5.6709992]
[1747916280080,5.629,177.64,177.61,0.0414992]
[1747916280285,0.03628606,177.65,177.61,0.0414992]
[1747916280784,5.6294,177.62,177.61,0.0414992]
[1747916281792,5.631,177.57,177.55,4.72057682]
[1747916282193,120.52,177.63,177.55,4.72057682]
[1747916282697,120.52,177.63,177.53,5.9485]
[1747916282899,5.66717543,177.61,177.57,5.66756393]
[1747916283198,0.03707543,177.61,177.57,5.66756393]
[1747916283397,0.03707543,177.61,177.57,0.03676393]
[1747916284398,5.6301,177.6,177.57,0.03676393]
[1747916284898,0.03707543,177.61,177.57,0.03676393]
[1747916285698,5.6301,177.6,177.57,0.03676393]
[1747916286500,5.6305,177.59,177.57,0.03676393]
[1747916287400,5.6302,177.6,177.57,0.03676393]
[1747916287594,0.03707543,177.61,177.57,0.03676393]
[1747916288600,5.6304,177.59,177.57,0.03676393]
[1747916291104,5.6302,177.6,177.57,0.03676393]
[1747916291598,0.03707543,177.61,177.57,0.03676393]
[1747916291804,5.6304,177.59,177.57,0.03676393]
[1747916292304,5.6307,177.58,177.57,0.03676393]
[1747916295798,5.6304,177.59,177.57,0.03676393]
[1747916296108,0.03707543,177.61,177.57,0.03676393]
[1747916296704,5.6307,177.58,177.57,0.03676393]
[1747916296899,0.03707543,177.61,177.57,0.03676393]
[1747916297100,5.6304,177.59,177.57,0.03676393]
[1747916297507,0.03707543,177.61,177.57,0.03676393]
[1747916298006,0.03707543,177.61,177.6,5.6301]
[1747916303019,5.66687543,177.61,177.58,5.6305]
[1747916303215,5.66687543,177.61,177.57,0.03676393]
[1747916303216,0.03707543,177.61,177.57,0.03676393]
[1747916304113,0.03707543,177.61,177.6,5.6301]
[1747916305916,126.4284,177.66,177.63,5.6291]
[1747916306228,120.8,177.66,177.57,7.19363879]
[1747916306417,5.23817926,177.68,177.57,7.19363879]
[1747916306715,5.6279,177.67,177.57,7.19363879]
[1747916306909,5.23817926,177.68,177.57,7.19363879]
[1747916306910,0.04155529,177.64,177.6,0.0357877]
[1747916307807,0.04155529,177.64,177.61,5.6297]
[1747916308116,0.04155529,177.64,177.6,0.0357877]
[1747916308310,0.04155529,177.64,177.61,5.6297]
[1747916309015,0.04155529,177.64,177.61,5.6295]
[1747916309419,0.04155529,177.64,177.6,0.0357877]
[1747916309619,0.04155529,177.64,177.62,5.6292]
[1747916310012,0.04155529,177.64,177.6,0.0357877]
[1747916310317,0.04155529,177.64,177.63,5.6291]
[1747916311018,0.04155529,177.64,177.6,0.0357877]
[1747916311419,0.04155529,177.64,177.61,5.6297]
[1747916311819,0.04155529,177.64,177.6,0.0357877]
[1747916311820,5.67055529,177.64,177.6,0.0357877]
[1747916312521,5.67055529,177.64,177.6,5.6657877]
[1747916313018,5.6291,177.63,177.6,5.6657877]
[1747916313211,0.04155529,177.64,177.6,5.6657877]
[1747916313414,0.04155529,177.64,177.61,5.6296]
[1747916314420,5.67065529,177.64,177.6,0.0357877]
[1747916314622,0.04155529,177.64,177.6,0.0357877]
[1747916315021,5.67055529,177.64,177.6,5.6655877]
[1747916315222,5.67055529,177.64,177.6,0.0357877]
[1747916315724,0.04155529,177.64,177.61,5.6297]
[1747916318423,0.04155529,177.64,177.62,5.6294]
[1747916320127,0.04155529,177.64,177.61,5.6296]
[1747916320524,0.04155529,177.64,177.62,5.6293]
[1747916320929,0.04155529,177.64,177.6,0.0357877]
[1747916321322,0.04155529,177.64,177.63,5.6291]
[1747916322020,0.04155529,177.64,177.62,5.6293]
[1747916322431,0.04155529,177.64,177.63,5.6291]
[1747916324726,0.04155529,177.64,177.61,5.6296]
[1747916325231,5.67045529,177.64,177.6,0.0357877]
[1747916325432,5.67045529,177.64,177.6,5.6655877]
[1747916325632,5.67045529,177.64,177.6,0.0357877]
[1747916325825,0.04155529,177.64,177.6,0.0357877]
[1747916326025,0.04155529,177.64,177.61,5.6297]
[1747916326232,0.04155529,177.64,177.6,0.0357877]
[1747916326627,0.04155529,177.64,177.61,5.6297]
[1747916327033,0.04155529,177.64,177.6,0.0357877]
[1747916327734,0.04155529,177.64,177.63,5.6291]
[1747916328931,120.8,177.69,177.6,0.0357877]
[1747916329137,120.8,177.69,177.61,7.19363879]
[1747916329332,120.8,177.69,177.66,5.6279]
[1747916329838,120.83579543,177.69,177.66,5.66798426]
[1747916330338,0.03579543,177.69,177.67,5.6277]
[1747916331436,0.03579543,177.69,177.68,5.6275]
[1747916335935,0.03579543,177.69,177.67,5.6278]
[1747916336252,0.03579543,177.69,177.66,0.04008426]
[1747916336839,5.6277,177.68,177.66,0.04008426]
[1747916337032,0.03579543,177.69,177.66,0.04008426]
[1747916337243,5.6278,177.67,177.66,0.04008426]
[1747916340736,3.88869543,177.69,177.59,126.7703]
[1747916340942,5.6295,177.62,177.59,126.7703]
[1747916341440,3.8529,177.69,177.59,121.14]
[1747916341643,5.6292,177.63,177.6,5.63]
[1747916341837,0.03918706,177.63,177.6,0.03677039]
[1747916342037,0.03918706,177.63,177.61,5.6297]
[1747916343146,0.03918706,177.63,177.6,5.66677039]
[1747916343744,0.03918706,177.63,177.6,0.03677039]
[1747916344047,0.03918706,177.63,177.6,5.66667039]
[1747916344342,5.66828706,177.63,177.6,0.03677039]
[1747916345244,5.66828706,177.63,177.6,5.66687039]
[1747916345539,0.03918706,177.63,177.6,5.66687039]
[1747916345747,0.03918706,177.63,177.6,0.03677039]
[1747916346445,0.03918706,177.63,177.62,5.6294]
[1747916347145,0.03918706,177.63,177.6,0.03677039]
[1747916347743,0.03918706,177.63,177.61,5.6295]
[1747916348545,0.03918706,177.63,177.62,5.6294]
[1747916349451,0.03918706,177.63,177.61,5.6296]
[1747916350642,0.03918706,177.63,177.62,5.6294]
[1747916351047,0.03918706,177.63,177.6,0.03677039]
[1747916351248,0.03918706,177.63,177.61,5.6296]
[1747916353049,0.03918706,177.63,177.62,5.6294]
[1747916353853,0.03918706,177.63,177.6,0.03677039]
[1747916353854,5.23817926,177.69,177.6,0.03677039]
[1747916354059,6.98002836,177.72,177.64,7.19363879]
[1747916354246,6.98002836,177.72,177.6,2.02727039]
[1747916354247,6.98002836,177.72,177.68,7.19363879]
[1747916354451,5.25203412,177.74,177.69,121.16]
[1747916354646,5.25203412,177.74,177.73,5.6259]
[1747916355357,5.25203412,177.74,177.72,5.6262]
[1747916355652,5.25203412,177.74,177.7,0.04274242]
[1747916356353,5.25203412,177.74,177.73,5.6259]
[1747916356549,0.0398202,177.75,177.7,0.04274242]
[1747916356754,0.0398202,177.75,177.74,5.6256]
[1747916357554,486.4,177.86,177.72,7.19363879]
[1747916357751,606.8,177.86,177.73,227.34]
[1747916357951,120.4,177.86,177.76,7.19363879]
[1747916358267,120.4,177.86,177.79,5.624]
[1747916358754,5.6229,177.83,177.81,0.04258889]
[1747916358958,0.04094463,177.84,177.81,0.04258889]
[1747916361456,0.04094463,177.84,177.81,5.66598889]
[1747916361657,0.04094463,177.84,177.81,0.04258889]
[1747916362656,120.36,177.92,177.81,0.04258889]
[1747916362959,120.36,177.92,177.81,106.96258889]
[1747916363155,125.9801,177.92,177.81,110.9803]
[1747916363464,125.9801,177.92,177.83,7.19363879]
[1747916363651,125.9801,177.92,177.84,120.34]
[1747916363961,0.04050858,177.89,177.86,0.04094297]
[1747916364262,0.04050858,177.89,177.86,5.66274297]
[1747916364859,0.04050858,177.89,177.86,0.04094297]
[1747916366968,0.04050858,177.89,177.88,5.6212]
[1747916368169,5.6191,177.95,177.89,5.6207]
[1747916368863,5.6191,177.95,177.9,5.6205]
[1747916369273,0.03798936,177.94,177.91,0.04066568]
[1747916369670,5.65728936,177.94,177.91,0.04066568]
[1747916370671,0.03798936,177.94,177.91,0.04066568]
[1747916372770,5.65738936,177.94,177.91,0.04066568]
[1747916372963,0.03798936,177.94,177.91,0.04066568]
[1747916373869,0.03798936,177.94,177.92,5.6197]
[1747916374269,0.03798936,177.94,177.91,0.04066568]
[1747916374468,5.65728936,177.94,177.91,0.04066568]
[1747916374859,0.03798936,177.94,177.91,0.04066568]
[1747916375064,5.65738936,177.94,177.91,0.04066568]
[1747916375360,0.03798936,177.94,177.91,0.04066568]
[1747916375868,5.65758936,177.94,177.91,0.04066568]
[1747916377474,0.03798936,177.94,177.91,0.04066568]
[1747916377665,126.1112,178.03,177.91,0.04066568]
[1747916377869,126.1112,178.03,177.91,5.8783]
[1747916378173,126.1112,178.03,177.96,5.6185]
[1747916378363,126.1112,178.03,177.94,120.26]
[1747916378766,0.04037086,178.0,177.97,0.0424375]
[1747916380575,0.04037086,178.0,177.97,5.6607375]
[1747916380773,0.04037086,178.0,177.97,0.0424375]
[1747916381273,0.04037086,178.0,177.97,5.6605375]
[1747916381771,0.04037086,178.0,177.98,5.618]
[1747916381972,0.04037086,178.0,177.97,0.0424375]
[1747916382273,124.2519,178.08,177.98,7.19363879]
[1747916382471,5.6153,178.07,178.02,5.6165]
[1747916382678,122.1838,178.08,177.99,120.22]
[1747916382869,120.22,178.08,177.99,120.22]
[1747916383173,120.22,178.08,177.99,126.131]
[1747916383374,0.03839639,178.05,178.02,0.04006267]
[1747916383676,0.03839639,178.05,178.03,5.6165]
[1747916384066,0.03839639,178.05,178.02,0.04006267]
[1747916384376,0.03839639,178.05,178.03,5.6162]
[1747916384774,0.03839639,178.05,178.04,5.6162]
[1747916384974,0.03839639,178.05,178.02,0.04006267]
[1747916385773,0.03839639,178.05,178.03,5.6165]
[1747916386272,0.03839639,178.05,178.02,0.04006267]
[1747916386674,122.2881,178.12,178.02,0.04006267]
[1747916387179,5.6141,178.11,178.02,0.04006267]
[1747916387381,18.41653879,178.2,178.02,0.04006267]
[1747916387382,122.2,178.16,178.02,0.04006267]
[1747916387569,122.2,178.16,178.01,106.78]
[1747916387876,0.04200917,178.1,178.06,0.03541985]
[1747916388983,0.04200917,178.1,178.07,5.6152]
[1747916389184,0.04200917,178.1,178.06,0.03541985]
[1747916389569,0.04200917,178.1,178.07,5.6152]
[1747916390182,0.04200917,178.1,178.06,0.03541985]
[1747916390780,0.04200917,178.1,178.09,5.6146]
[1747916391589,9.17e-06,178.1,178.09,12.80823879]
[1747916391778,122.18,178.18,178.13,5.6132]
[1747916391978,122.18,178.18,178.09,7.19363879]
[1747916392178,1.8943,178.19,178.12,5.6136]
[1747916392485,7.5058,178.19,178.08,129.35363879]
[1747916392676,0.03563928,178.15,178.13,5.613]
[1747916392878,0.03563928,178.15,178.12,0.03736956]
[1747916393378,5.64833928,178.15,178.12,0.03736956]
[1747916394686,0.03563928,178.15,178.12,0.03736956]
[1747916395289,124.0764,178.22,178.12,7.23100835]
[1747916395686,124.0764,178.22,178.12,0.03736956]
[1747916395885,5.6118,178.18,178.12,0.03736956]
[1747916396389,124.0764,178.22,178.12,0.03736956]
[1747916396584,122.16,178.22,178.13,122.12]
[1747916396779,122.16,178.22,178.16,0.03989135]
[1747916396983,5.6118,178.18,178.16,0.03989135]
[1747916397280,122.16,178.22,178.16,0.03989135]
[1747916397500,5.612,178.18,178.16,0.03989135]
[1747916398092,5.6115,178.19,178.16,0.03989135]
[1747916398390,122.16,178.22,178.16,0.03989135]
[1747916399190,5.6119,178.18,178.16,0.03989135]
[1747916400091,5.6121,178.17,178.16,0.03989135]
[1747916400282,122.16,178.22,176.75,9799.48187137]
[1747916400283,122.16,178.22,177.96,490.24057682]
[1747916400487,7.19363879,178.21,178.07,124.1679]
[1747916400687,7.19363879,178.21,178.09,5.6143]
[1747916400887,1.8444,178.2,178.07,124.1679]
[1747916401192,1.8444,178.2,178.07,127.7151]
[1747916401382,0.03912582,178.15,178.12,0.03977698]
[1747916401588,5.6133,178.13,178.12,0.03977698]
[1747916403699,122.13912582,178.15,178.12,0.03977698]
[1747916403992,0.03912582,178.15,178.12,0.03977698]
[1747916404393,0.03912582,178.15,178.13,5.6131]
[1747916404598,0.03912582,178.15,178.12,0.03977698]
[1747916404797,5.65202582,178.15,178.12,0.03977698]
[1747916404997,5.65202582,178.15,178.12,5.65337698]
[1747916405199,0.03912582,178.15,178.12,0.03977698]
[1747916406000,0.03912582,178.15,178.12,5.65327698]
[1747916406194,0.03912582,178.15,178.12,0.03977698]
[1747916407307,0.03912582,178.15,178.12,5.65327698]
[1747916408310,0.03912582,178.15,178.13,5.6132]
[1747916408607,0.03912582,178.15,178.12,0.03977698]
[1747916409499,0.03912582,178.15,178.13,5.6133]
[1747916411305,0.03912582,178.15,178.12,5.65327698]
[1747916411512,0.03912582,178.15,178.12,0.03977698]
[1747916411812,0.03912582,178.15,178.14,5.613]
[1747916412012,122.08,178.24,178.12,122.11977698]
[1747916412213,123.9979,178.23,178.12,122.08]
[1747916412406,5.6115,178.19,178.12,122.08]
[1747916412713,123.9979,178.23,178.12,122.08]
[1747916413012,123.9979,178.23,178.16,0.04179577]
[1747916413312,122.08,178.23,178.16,0.04179577]
[1747916413608,122.08,178.23,178.18,5.6117]
[1747916414010,122.08,178.23,178.16,0.04179577]
[1747916414607,122.08,178.23,178.18,5.6117]
[1747916415009,122.08,178.23,178.16,0.04179577]
[1747916415308,5.611,178.21,178.16,5.65409577]
[1747916415611,122.08,178.23,178.16,0.04179577]
[1747916416012,5.6113,178.2,178.16,0.04179577]
[1747916416215,122.08,178.23,178.16,0.04179577]
[1747916419314,5.6121,178.17,178.16,0.04179577]
[1747916419920,122.08,178.23,178.16,0.04179577]
[1747916421516,122.08,178.23,178.18,5.6117]
[1747916421814,5.6106,178.22,178.18,5.6117]
[1747916422015,5.6106,178.22,178.18,5.65083694]
[1747916422618,5.6106,178.22,178.19,5.6112]
[1747916423220,5.6106,178.22,178.18,5.65073694]
[1747916423410,5.6109,178.21,178.18,5.65073694]
[1747916424018,5.6106,178.22,178.19,5.6114]
[1747916424213,121.7,178.25,178.19,5.6114]
[1747916424612,5.6109,178.21,178.19,5.6114]
[1747916424913,121.7,178.25,178.18,0.03913694]
[1747916425114,5.6107,178.22,178.18,0.03913694]
[1747916425314,121.7,178.25,178.18,0.03913694]
[1747916426218,5.6113,178.2,178.18,0.03913694]
[1747916426619,121.7,178.25,178.18,0.03913694]
[1747916427524,5.6114,178.19,178.18,0.03913694]
[1747916431531,5.6114,178.19,178.18,0.00764941]
[1747916436329,10.80396955,178.19,178.18,0.00764941]
[1747916437026,12.70756955,178.19,178.18,0.00764941]
[1747916438525,14.43046514,178.19,178.18,0.00764941]
[1747916441934,5.6133,178.14,178.1,5.6142]
[1747916442138,8.81906514,178.19,178.1,5.6142]
[1747916442634,8.81906514,178.19,178.09,5.6145]
[1747916443035,0.04294929,178.16,178.12,0.03671991]
[1747916443234,5.6133,178.13,178.12,0.03671991]
[1747916448942,0.04294929,178.16,178.12,0.03671991]
[1747916449738,0.04294929,178.16,178.14,5.6128]
[1747916450941,5.65534929,178.16,178.14,5.6128]
[1747916451439,0.04294929,178.16,178.15,5.6127]
[1747916451634,0.04294929,178.16,178.12,0.03671991]
[1747916452441,0.04294929,178.16,178.14,5.6128]
[1747916452639,0.04294929,178.16,178.12,0.03671991]
[1747916453337,0.04294929,178.16,178.15,5.6127]
[1747916453536,5.23939405,178.2,178.14,122.76]
[1747916453740,5.23939405,178.2,178.17,5.6119]
[1747916454548,5.23939405,178.2,178.17,5.64817536]
[1747916454739,5.23939405,178.2,178.17,0.03627536]
[1747916455448,5.6118,178.18,178.17,0.03627536]
[1747916461650,5.6114,178.2,178.17,0.03627536]
[1747916461953,5.23939405,178.22,178.17,0.03627536]
[1747916462145,5.6115,178.19,178.17,0.03627536]
[1747916462349,5.23939405,178.22,178.17,0.03627536]
[1747916462652,5.6115,178.19,178.17,0.03627536]
[1747916463151,5.6118,178.18,178.17,0.03627536]
[1747916465052,5.6118,178.18,178.17,0.00734574]
[1747916467946,0.03342773,178.19,178.17,0.00734574]
[1747916468649,0.03342773,178.19,178.18,5.6118]
[1747916472851,0.03342773,178.19,178.17,0.00734574]
[1747916475559,0.03342773,178.19,178.18,5.6118]
[1747916477158,0.03342773,178.19,178.18,7.6456]
[1747916482355,2.773e-05,178.19,178.18,7.6456]
[1747916482659,5.23939405,178.27,178.18,2.0338]
[1747916482956,5.23939405,178.27,178.2,7.19363879]
[1747916483158,5.23939405,178.27,178.26,5.6092]
[1747916483453,2.11939405,178.27,178.26,5.6092]
[1747916485166,6.91546514,178.29,178.27,5.6086]
[1747916485459,121.18,178.36,178.25,0.04036528]
[1747916485662,121.18,178.36,178.29,0.03803846]
[1747916486452,5.6068,178.34,178.29,5.64613846]
[1747916486656,121.18,178.36,178.29,0.03803846]
[1747916486862,126.7864,178.36,178.29,0.03803846]
[1747916487163,121.18,178.36,178.29,0.03803846]
[1747916487363,6.91546514,178.38,178.29,0.03803846]
[1747916487861,6.91546514,178.38,178.3,5.608]
[1747916488268,6.91546514,178.38,178.29,0.03803846]
[1747916488565,6.91546514,178.38,178.29,2.08813846]
[1747916488759,5.6058,178.37,178.29,2.08813846]
[1747916488966,121.16,178.39,178.29,2.08813846]
[1747916489364,125.0679,178.43,178.29,2.08813846]
[1747916489565,125.0679,178.43,178.34,0.04176143]
[1747916489762,5.6054,178.39,178.34,5.64826143]
[1747916490063,125.0679,178.43,178.34,0.04176143]
[1747916490462,5.6054,178.39,178.34,5.64846143]
[1747916490663,125.0679,178.43,178.34,0.04176143]
[1747916491361,5.6064,178.35,178.34,0.04176143]
[1747916493065,2.0267,178.37,178.26,121.12]
[1747916493465,2.0267,178.37,178.29,5.608]
[1747916493668,2.0267,178.37,178.26,121.12]
[1747916494073,0.03806351,178.33,178.3,0.03765712]
[1747916494475,0.03806351,178.33,178.3,5.64545712]
[1747916495173,0.03806351,178.33,178.31,5.6074]
[1747916495878,5.64516351,178.33,178.3,0.03765712]
[1747916496376,0.03806351,178.33,178.3,5.64555712]
[1747916496881,0.03806351,178.33,178.3,0.03765712]
[1747916497569,5.64516351,178.33,178.3,0.03765712]
[1747916497780,0.03806351,178.33,178.3,0.03765712]
[1747916498879,5.6077,178.31,178.3,0.03765712]
[1747916500593,5.6074,178.32,178.3,0.03765712]
[1747916501092,0.03806351,178.33,178.3,0.03765712]
[1747916501796,5.6074,178.32,178.3,0.03765712]
[1747916502286,0.03806351,178.33,178.3,0.03765712]
[1747916502595,5.6077,178.31,178.3,0.03765712]
[1747916506089,121.13806351,178.33,178.3,0.03765712]
[1747916506293,0.03806351,178.33,178.3,5.64565712]
[1747916506486,0.03806351,178.33,178.3,0.03765712]
[1747916507394,0.03806351,178.33,178.31,5.6077]
[1747916507598,0.03806351,178.33,178.3,0.03765712]
[1747916508094,0.03806351,178.33,178.32,5.6074]
[1747916509798,0.03806351,178.33,178.31,5.6075]
[1747916510005,0.03806351,178.33,178.3,0.03765712]
[1747916510297,0.03806351,178.33,178.31,5.6074]
[1747916510493,0.03806351,178.33,178.3,0.03765712]
[1747916511597,5.64536351,178.33,178.3,0.03765712]
[1747916511900,0.03806351,178.33,178.3,0.03765712]
[1747916512087,0.03806351,178.33,178.3,5.64545712]
[1747916513200,5.64516351,178.33,178.3,5.64545712]
[1747916513402,0.03806351,178.33,178.3,0.03765712]
[1747916514596,5.64516351,178.33,178.3,5.64545712]
[1747916515400,0.03806351,178.33,178.31,5.6076]
[1747916515603,0.03806351,178.33,178.3,0.03765712]
[1747916515896,0.03806351,178.33,178.31,5.6075]
[1747916516198,0.03806351,178.33,178.3,0.03765712]
[1747916516598,0.03806351,178.33,178.32,5.6074]
[1747916520301,5.6075,178.32,178.3,0.03765712]
[1747916520497,0.03806351,178.33,178.3,0.03765712]